[Event "Weekend I 2025"]
[Site "Uppsala, Sweden"]
[Date "2025.06.27"]
[Round "1.5"]
[White "Wallgren, Ulf"]
[Black "Wedenberg, Oliver"]
[Result "0-1"]
[TimeControl "90 min + increment of 30 sec starting move 1"]
[WhiteFideId "1706527"]
[BlackFideId "1767909"]
[WhiteElo "2011"]
[BlackElo "2085"]

1. e4 {[%clk 01:30:55]} {[%emt 00:00:04]} c5 {[%clk 01:30:54]} {[%emt
00:00:06]} 2. Nf3 {[%clk 01:31:14]} {[%emt 00:00:11]} d6 {[%clk 01:31:13]}
{[%emt 00:00:12]} 3. c3 {[%clk 01:31:24]} {[%emt 00:00:20]} Nf6 {[%clk
01:31:16]} {[%emt 00:00:26]} 4. h3 {[%clk 01:30:16]} {[%emt 00:01:39]} Nc6
{[%clk 01:28:41]} {[%emt 00:03:05]} 5. Bd3 {[%clk 01:29:32]} {[%emt 00:01:13]}
e5 {[%clk 01:28:39]} {[%emt 00:00:32]} 6. Bc2 {[%clk 01:28:20]} {[%emt
00:01:43]} d5 {[%clk 01:28:22]} {[%emt 00:00:46]} 7. exd5 {[%clk 01:27:24]}
{[%emt 00:01:26]} Qxd5 {[%clk 01:28:29]} {[%emt 00:00:23]} 8. Qe2 {[%clk
01:14:21]} {[%emt 00:13:32]} Be7 {[%clk 01:22:56]} {[%emt 00:06:03]} 9. d3
{[%clk 01:12:20]} {[%emt 00:02:33]} Bf5 {[%clk 01:15:15]} {[%emt 00:08:11]} 10.
Nbd2 {[%clk 01:04:54]} {[%emt 00:07:55]} O-O-O {[%clk 01:08:50]} {[%emt
00:06:56]} 11. Ne4 {[%clk 01:03:39]} {[%emt 00:01:45]} h6 {[%clk 01:06:47]}
{[%emt 00:02:33]} 12. b3 {[%clk 00:50:14]} {[%emt 00:13:54]} Bh7 {[%clk
01:01:05]} {[%emt 00:06:13]} 13. g4 {[%clk 00:44:41]} {[%emt 00:06:02]} Nd7
{[%clk 00:56:03]} {[%emt 00:05:32]} 14. Bb2 {[%clk 00:38:33]} {[%emt 00:06:39]}
Rhf8 {[%clk 00:49:44]} {[%emt 00:06:48]} 15. O-O-O {[%clk 00:37:12]} {[%emt
00:01:51]} f5 {[%clk 00:44:37]} {[%emt 00:05:37]} 16. gxf5 {[%clk 00:37:30]}
{[%emt 00:00:13]} Rxf5 {[%clk 00:42:16]} {[%emt 00:02:51]} 17. d4 {[%clk
00:29:01]} {[%emt 00:08:59]} Rf4 {[%clk 00:33:23]} {[%emt 00:09:23]} 18. Rhe1
{[%clk 00:29:01]} {[%emt 00:00:29]} Qf7 {[%clk 00:32:28]} {[%emt 00:01:25]} 19.
Nxe5 {[%clk 00:27:25]} {[%emt 00:02:06]} Ndxe5 {[%clk 00:31:55]} {[%emt
00:01:04]} 20. dxe5 {[%clk 00:27:43]} {[%emt 00:00:11]} Bxe4 {[%clk 00:26:41]}
{[%emt 00:05:44]} 21. Bxe4 {[%clk 00:26:12]} {[%emt 00:02:01]} Rxf2 {[%clk
00:25:49]} {[%emt 00:01:22]} 22. Qg4+ {[%clk 00:24:03]} {[%emt 00:02:39]} Kb8
{[%clk 00:25:13]} {[%emt 00:01:06]} 23. Bxc6 {[%clk 00:21:15]} {[%emt
00:03:18]} bxc6 {[%clk 00:25:12]} {[%emt 00:00:32]} 24. Rxd8+ {[%clk 00:20:09]}
{[%emt 00:01:35]} Bxd8 {[%clk 00:25:24]} {[%emt 00:00:18]} 25. e6 {[%clk
00:16:13]} {[%emt 00:04:27]} Qc7 {[%clk 00:23:56]} {[%emt 00:01:56]} 26. c4
{[%clk 00:12:50]} {[%emt 00:03:55]} Kb7 {[%clk 00:15:36]} {[%emt 00:08:49]} 27.
Qxg7 {[%clk 00:09:05]} {[%emt 00:04:15]} Be7 {[%clk 00:15:03]} {[%emt
00:01:03]} 28. Rd1 {[%clk 00:05:21]} {[%emt 00:04:13]} Qf4+ {[%clk 00:15:14]}
{[%emt 00:00:20]} 29. Kb1 {[%clk 00:04:53]} {[%emt 00:00:59]} Qe4+ {[%clk
00:14:57]} {[%emt 00:00:46]} 30. Ka1 {[%clk 00:05:04]} {[%emt 00:00:20]} Qxe6
{[%clk 00:15:02]} {[%emt 00:00:24]} 31. Qe5 {[%clk 00:04:07]} {[%emt 00:01:27]}
Qxe5 {[%clk 00:13:47]} {[%emt 00:01:45]} 32. Bxe5 {[%clk 00:04:35]} {[%emt
00:00:01]} Ka6 {[%clk 00:06:59]} {[%emt 00:07:20]} 33. Rd7 {[%clk 00:03:23]}
{[%emt 00:01:40]} Bg5 {[%clk 00:07:16]} {[%emt 00:00:13]} 34. Bb8 {[%clk
00:02:01]} {[%emt 00:01:53]} Bf6+ {[%clk 00:07:15]} {[%emt 00:00:30]} 35. Kb1
{[%clk 00:02:30]} {[%emt 00:00:02]} Ka5 {[%clk 00:06:24]} {[%emt 00:01:21]} 36.
a3 {[%clk 00:02:17]} {[%emt 00:00:43]} Rb2+ {[%clk 00:05:39]} {[%emt 00:01:15]}
37. Kc1 {[%clk 00:02:46]} Rxb3 {[%clk 00:05:48]} {[%emt 00:00:22]} 38. Rxa7+
{[%clk 00:02:11]} {[%emt 00:01:05]} Kb6 {[%clk 00:06:11]} {[%emt 00:00:07]} 39.
Rf7 {[%clk 00:02:07]} {[%emt 00:00:35]} Bg5+ {[%clk 00:04:58]} {[%emt
00:01:42]} 40. Kc2 {[%clk 00:02:28]} {[%emt 00:00:10]} Rxa3 {[%clk 00:04:44]}
{[%emt 00:00:44]} 41. Bc7+ {[%clk 00:02:44]} {[%emt 00:00:14]} Ka6 {[%clk
00:04:53]} {[%emt 00:00:19]} 42. Bd6 {[%clk 00:02:14]} {[%emt 00:01:01]} Ra4
{[%clk 00:01:55]} {[%emt 00:03:27]} 43. Kc3 {[%clk 00:02:29]} {[%emt 00:00:16]}
Be3 {[%clk 00:01:40]} {[%emt 00:00:45]} 44. Rf5 {[%clk 00:01:30]} {[%emt
00:01:30]} Bd4+ {[%clk 00:01:53]} {[%emt 00:00:17]} 45. Kd3 {[%clk 00:01:47]}
{[%emt 00:00:12]} Ra3+ {[%clk 00:01:47]} {[%emt 00:00:35]} 46. Kd2 {[%clk
00:01:50]} {[%emt 00:00:29]} Rxh3 {[%clk 00:01:49]} {[%emt 00:00:27]} 47. Bxc5
{[%clk 00:02:14]} {[%emt 00:00:07]} Bxc5 {[%clk 00:01:56]} {[%emt 00:00:23]} 48.
Rxc5 {[%clk 00:02:42]} {[%emt 00:00:02]} Kb6 {[%clk 00:01:57]} {[%emt
00:00:29]} 49. Rf5 {[%clk 00:03:04]} {[%emt 00:00:07]} c5 {[%clk 00:01:50]}
{[%emt 00:00:38]} 50. Kc2 {[%clk 00:02:41]} {[%emt 00:00:53]} h5 {[%clk
00:02:00]} {[%emt 00:00:20]} 51. Rf8 {[%clk 00:02:23]} {[%emt 00:00:47]} h4
{[%clk 00:01:20]} {[%emt 00:01:10]} 52. Rb8+ {[%clk 00:01:08]} {[%emt
00:01:46]} Kc6 {[%clk 00:01:24]} {[%emt 00:00:26]} 53. Rc8+ {[%clk 00:00:57]}
{[%emt 00:00:41]} Kd6 {[%clk 00:01:28]} {[%emt 00:00:26]} 54. Rd8+ {[%clk
00:01:11]} {[%emt 00:00:16]} Kc7 {[%clk 00:01:20]} {[%emt 00:00:37]} 55. Rh8
{[%clk 00:01:11]} {[%emt 00:00:29]} Kd7 {[%clk 00:00:42]} {[%emt 00:01:10]} 56.
Rh6 {[%clk 00:01:07]} {[%emt 00:00:34]} Rh1 {[%clk 00:01:02]} {[%emt 00:00:10]}
57. Kb2 {[%clk 00:00:51]} {[%emt 00:00:45]} h3 {[%clk 00:01:05]} {[%emt
00:00:27]} 58. Kc2 {[%clk 00:00:54]} {[%emt 00:00:27]} h2 {[%clk 00:01:24]}
{[%emt 00:00:12]} 59. Kb2 {[%clk 00:01:22]} {[%emt 00:00:02]} Ke7 {[%clk
00:01:31]} {[%emt 00:00:22]} 60. Ka2 {[%clk 00:01:10]} {[%emt 00:00:43]} Kf7
{[%clk 00:01:51]} {[%emt 00:00:07]} 61. Kb2 {[%clk 00:01:04]} {[%emt 00:00:38]}
Kg7 {[%clk 00:02:08]} {[%emt 00:00:12]} 62. Rh3 {[%clk 00:01:01]} {[%emt
00:00:34]} Kf6 {[%clk 00:02:10]} {[%emt 00:00:29]} 63. Rh5 {[%clk 00:01:18]}
{[%emt 00:00:12]} Kg6 {[%clk 00:02:17]} {[%emt 00:00:22]} 64. Rh8 {[%clk
00:01:38]} {[%emt 00:00:10]} Kf5 {[%clk 00:02:33]} {[%emt 00:00:15]} 65. Rh4
{[%clk 00:01:51]} {[%emt 00:00:17]} Kg5 {[%clk 00:02:42]} {[%emt 00:00:21]} 66.
Rh8 {[%clk 00:02:20]} {[%emt 00:00:02]} Kf4 {[%clk 00:02:37]} {[%emt 00:00:33]}
67. Rh3 {[%clk 00:00:54]} {[%emt 00:01:56]} Kg4 {[%clk 00:02:12]} {[%emt
00:00:56]} 68. Rh8 {[%clk 00:01:18]} {[%emt 00:00:06]} Kf4 {[%clk 00:01:04]}
{[%emt 00:01:38]} 69. Rh3 {[%clk 00:01:06]} {[%emt 00:00:42]} Ke4 {[%clk
00:00:56]} {[%emt 00:00:37]} 70. Rh5 {[%clk 00:01:08]} {[%emt 00:00:29]} Kd4
{[%clk 00:00:50]} {[%emt 00:00:36]} 71. Rh4+ {[%clk 00:01:36]} {[%emt
00:00:02]} Kd3 {[%clk 00:01:00]} {[%emt 00:00:19]} 72. Ka2 {[%clk 00:01:51]}
{[%emt 00:00:17]} Kc3 {[%clk 00:01:18]} {[%emt 00:00:11]} 0-1

[Event "Weekend I 2025"]
[Site "Uppsala, Sweden"]
[Date "2025.06.27"]
[Round "1.21"]
[White "Storskog, Thomas"]
[Black "Markensten, Max"]
[Result "0-1"]
[TimeControl "90 min + increment of 30 sec starting move 1"]
[WhiteFideId "1725998"]
[BlackFideId "1734610"]
[WhiteElo "1837"]
[BlackElo "1865"]

1. Nc3 {[%clk 01:30:24]} {[%emt 00:00:36]} d5 {[%clk 01:30:48]} {[%emt
00:00:12]} 2. e4 {[%clk 01:30:11]} {[%emt 00:00:44]} d4 {[%clk 01:31:10]}
{[%emt 00:00:07]} 3. Nce2 {[%clk 01:30:16]} {[%emt 00:00:24]} e5 {[%clk
01:31:31]} {[%emt 00:00:10]} 4. Nf3 {[%clk 01:30:19]} {[%emt 00:00:27]} f6
{[%clk 01:31:50]} {[%emt 00:00:11]} 5. Ng3 {[%clk 01:30:07]} {[%emt 00:00:41]}
Be6 {[%clk 01:32:10]} {[%emt 00:00:09]} 6. Bb5+ {[%clk 01:29:12]} {[%emt
00:01:27]} c6 {[%clk 01:32:33]} {[%emt 00:00:08]} 7. Ba4 {[%clk 01:29:29]}
{[%emt 00:00:12]} Nd7 {[%clk 01:32:55]} {[%emt 00:00:08]} 8. Bb3 {[%clk
01:28:55]} {[%emt 00:01:04]} Nc5 {[%clk 01:33:18]} {[%emt 00:00:07]} 9. Bxe6
{[%clk 01:22:43]} {[%emt 00:06:42]} Nxe6 {[%clk 01:33:41]} {[%emt 00:00:07]} 10.
O-O {[%clk 01:10:59]} {[%emt 00:12:14]} Qd7 {[%clk 01:32:42]} {[%emt 00:01:28]}
11. c4 {[%clk 01:04:19]} {[%emt 00:07:11]} O-O-O {[%clk 01:24:41]} {[%emt
00:08:31]} 12. Qa4 {[%clk 01:04:14]} {[%emt 00:00:35]} Kb8 {[%clk 01:22:16]}
{[%emt 00:02:55]} 13. b4 {[%clk 01:03:58]} {[%emt 00:00:46]} h5 {[%clk
01:20:53]} {[%emt 00:01:53]} 14. Nh4 {[%clk 00:59:07]} {[%emt 00:05:20]} Ne7
{[%clk 01:13:51]} {[%emt 00:07:33]} 15. d3 {[%clk 00:58:09]} {[%emt 00:01:28]}
g5 {[%clk 01:11:17]} {[%emt 00:03:04]} 16. Nhf5 {[%clk 00:57:56]} {[%emt
00:00:43]} Ng6 {[%clk 01:07:24]} {[%emt 00:04:22]} 17. Rb1 {[%clk 00:49:36]}
{[%emt 00:08:51]} Ngf4 {[%clk 01:05:20]} {[%emt 00:02:33]} 18. Qc2 {[%clk
00:49:14]} {[%emt 00:00:53]} h4 {[%clk 00:42:29]} {[%emt 00:23:21]} 19. Ne2
{[%clk 00:48:04]} g4 {[%clk 00:40:46]} {[%emt 00:03:52]} 20. b5 {[%clk
00:39:11]} c5 {[%clk 00:34:55]} {[%emt 00:15:45]} 21. Rb3 {[%clk 00:32:23]} Bh6
{[%clk 00:33:37]} {[%emt 00:08:22]} 22. Nxh6 {[%clk 00:25:15]} Rxh6 {[%clk
00:33:23]} {[%emt 00:09:05]} 23. Nxf4 {[%clk 00:23:55]} Nxf4 {[%clk 00:29:24]}
{[%emt 00:06:20]} 24. Bxf4 {[%clk 00:24:11]} exf4 {[%clk 00:29:42]} {[%emt
00:00:27]} 25. Qd2 {[%clk 00:24:38]} Qd6 {[%clk 00:28:20]} {[%emt 00:01:53]} 26.
Ra3 {[%clk 00:20:02]} Rh7 {[%clk 00:24:52]} {[%emt 00:09:04]} 27. Qa5 {[%clk
00:15:51]} b6 {[%clk 00:24:59]} {[%emt 00:05:05]} 28. Qd2 {[%clk 00:15:52]} f3
{[%clk 00:21:16]} {[%emt 00:04:42]} 29. g3 {[%clk 00:14:34]} {[%emt 00:01:47]}
hxg3 {[%clk 00:19:45]} {[%emt 00:02:01]} 30. fxg3 {[%clk 00:13:18]} {[%emt
00:01:46]} Rdh8 {[%clk 00:19:12]} {[%emt 00:01:04]} 31. Qf2 {[%clk 00:06:06]}
{[%emt 00:07:41]} f5 {[%clk 00:18:54]} {[%emt 00:00:49]} 32. exf5 {[%clk
00:05:16]} {[%emt 00:01:19]} Re8 {[%clk 00:17:43]} {[%emt 00:01:41]} 33. Re1
{[%clk 00:05:44]} {[%emt 00:00:02]} Rhe7 {[%clk 00:17:55]} {[%emt 00:00:19]} 34.
Rxe7 {[%clk 00:05:21]} {[%emt 00:00:54]} Rxe7 {[%clk 00:18:10]} {[%emt
00:00:14]} 35. Qd2 {[%clk 00:04:19]} {[%emt 00:01:32]} Re3 {[%clk 00:16:17]}
{[%emt 00:02:28]} 36. Qd1 {[%clk 00:01:16]} {[%emt 00:03:28]} Qe7 {[%clk
00:14:33]} {[%emt 00:02:14]} 37. f6 {[%clk 00:01:22]} {[%emt 00:00:24]} Re1+
{[%clk 00:14:21]} {[%emt 00:00:41]} 0-1

[Event "Weekend I 2025"]
[Site "Uppsala, Sweden"]
[Date "2025.06.27"]
[Round "1.6"]
[White "Tavernier, Loris"]
[Black "Bjornvall, Tord"]
[Result "1/2-1/2"]
[TimeControl "90 min + increment of 30 sec starting move 1"]
[WhiteTitle "CM"]
[WhiteFideId "651008653"]
[BlackFideId "1716557"]
[WhiteElo "2071"]
[BlackElo "2008"]

1. d4 {[%clk 01:30:56]} {[%emt 00:00:03]} d5 {[%clk 01:30:52]} {[%emt
00:00:08]} 2. c4 {[%clk 01:30:58]} {[%emt 00:00:29]} e5 {[%clk 01:31:13]}
{[%emt 00:00:08]} 3. cxd5 {[%clk 01:31:05]} {[%emt 00:00:24]} Qxd5 {[%clk
01:31:34]} {[%emt 00:00:09]} 4. Nf3 {[%clk 01:30:35]} {[%emt 00:01:00]} Nc6
{[%clk 01:27:12]} {[%emt 00:04:52]} 5. Nc3 {[%clk 01:30:36]} {[%emt 00:00:28]}
Bb4 {[%clk 01:27:24]} {[%emt 00:00:18]} 6. Bd2 {[%clk 01:30:31]} {[%emt
00:00:36]} Bxc3 {[%clk 01:27:42]} {[%emt 00:00:11]} 7. Bxc3 {[%clk 01:30:59]}
{[%emt 00:00:02]} e4 {[%clk 01:27:56]} {[%emt 00:00:15]} 8. Ne5 {[%clk
01:31:12]} {[%emt 00:00:18]} e3 {[%clk 01:27:57]} {[%emt 00:00:29]} 9. f3
{[%clk 01:30:29]} {[%emt 00:01:13]} Nge7 {[%clk 01:19:55]} {[%emt 00:08:31]} 10.
Qd3 {[%clk 01:20:15]} {[%emt 00:10:46]} Nxe5 {[%clk 01:19:11]} {[%emt
00:01:13]} 11. dxe5 {[%clk 01:13:34]} {[%emt 00:07:12]} Qxd3 {[%clk 01:19:22]}
{[%emt 00:00:17]} 12. exd3 {[%clk 01:14:02]} {[%emt 00:00:03]} Nd5 {[%clk
01:02:21]} {[%emt 00:17:31]} 13. d4 {[%clk 01:13:51]} {[%emt 00:00:41]} O-O
{[%clk 00:59:03]} {[%emt 00:03:47]} 14. Bc4 {[%clk 01:14:06]} {[%emt 00:00:17]}
Nb6 {[%clk 00:48:54]} {[%emt 00:10:38]} 15. Bb3 {[%clk 01:11:52]} {[%emt
00:02:44]} Be6 {[%clk 00:49:15]} {[%emt 00:00:08]} 16. Bc2 {[%clk 01:08:23]}
{[%emt 00:04:00]} Nd5 {[%clk 00:38:46]} {[%emt 00:10:58]} 17. Be4 {[%clk
01:05:36]} {[%emt 00:03:18]} f5 {[%clk 00:38:51]} {[%emt 00:00:24]} 18. Bxd5
{[%clk 00:49:41]} {[%emt 00:16:26]} Bxd5 {[%clk 00:39:01]} {[%emt 00:00:20]} 19.
f4 {[%clk 00:50:09]} {[%emt 00:00:03]} Bxg2 {[%clk 00:34:41]} {[%emt 00:04:49]}
20. Rg1 {[%clk 00:50:30]} {[%emt 00:00:09]} Bd5 {[%clk 00:34:38]} {[%emt
00:00:31]} 21. Ke2 {[%clk 00:50:55]} {[%emt 00:00:08]} Rae8 {[%clk 00:33:31]}
{[%emt 00:01:36]} 22. Rg3 {[%clk 00:50:20]} {[%emt 00:01:04]} Re6 {[%clk
00:32:17]} {[%emt 00:01:44]} 23. Rag1 {[%clk 00:50:12]} {[%emt 00:00:39]} Rf7
{[%clk 00:32:01]} {[%emt 00:00:45]} 24. b3 {[%clk 00:47:56]} {[%emt 00:02:47]}
a5 {[%clk 00:23:04]} {[%emt 00:09:27]} 25. Kxe3 {[%clk 00:46:59]} {[%emt
00:01:28]} b6 {[%clk 00:22:45]} {[%emt 00:00:47]} 26. Bb2 {[%clk 00:42:35]}
{[%emt 00:04:55]} c6 {[%clk 00:19:54]} {[%emt 00:03:21]} 1/2-1/2

[Event "Weekend I 2025"]
[Site "Uppsala, Sweden"]
[Date "2025.06.27"]
[Round "1.22"]
[White "Bergqvist, Morris"]
[Black "Alm, Ture"]
[Result "0-1"]
[TimeControl "90 min + increment of 30 sec starting move 1"]
[WhiteFideId "1776908"]
[BlackFideId "1789120"]
[WhiteElo "1859"]
[BlackElo "1828"]

1. d4 {[%clk 01:29:29]} {[%emt 00:01:29]} d5 {[%clk 01:30:42]} {[%emt
00:00:19]} 2. Nc3 {[%clk 01:29:29]} {[%emt 00:00:30]} Nf6 {[%clk 01:30:51]}
{[%emt 00:00:21]} 3. Bf4 {[%clk 01:29:55]} {[%emt 00:00:05]} a6 {[%clk
01:30:29]} {[%emt 00:00:52]} 4. e3 {[%clk 01:29:23]} {[%emt 00:01:02]} b5
{[%clk 01:30:26]} {[%emt 00:00:32]} 5. Nf3 {[%clk 01:28:38]} {[%emt 00:01:16]}
Bb7 {[%clk 01:27:20]} {[%emt 00:03:34]} 6. Ne5 {[%clk 01:26:38]} {[%emt
00:02:31]} Nbd7 {[%clk 01:25:58]} {[%emt 00:01:53]} 7. a4 {[%clk 01:11:18]}
{[%emt 00:15:50]} b4 {[%clk 01:25:08]} {[%emt 00:01:18]} 8. Ne2 {[%clk
01:06:52]} {[%emt 00:04:57]} e6 {[%clk 01:20:09]} {[%emt 00:05:30]} 9. Ng3
{[%clk 01:01:55]} {[%emt 00:05:26]} Nxe5 {[%clk 01:12:16]} {[%emt 00:08:23]} 10.
dxe5 {[%clk 00:58:40]} {[%emt 00:03:46]} Nd7 {[%clk 01:11:35]} {[%emt
00:01:10]} 11. h4 {[%clk 00:54:38]} {[%emt 00:04:32]} c5 {[%clk 01:02:23]}
{[%emt 00:09:42]} 12. Qg4 {[%clk 00:26:20]} {[%emt 00:28:47]} Qc7 {[%clk
00:45:43]} {[%emt 00:17:10]} 13. Nh5 {[%clk 00:22:42]} {[%emt 00:04:09]} g6
{[%clk 00:44:37]} {[%emt 00:01:37]} 14. Nf6+ {[%clk 00:20:53]} {[%emt
00:02:18]} Nxf6 {[%clk 00:43:47]} {[%emt 00:01:21]} 15. exf6 {[%clk 00:21:21]}
{[%emt 00:00:02]} Bd6 {[%clk 00:42:54]} {[%emt 00:01:22]} 16. h5 {[%clk
00:14:45]} {[%emt 00:07:06]} O-O-O {[%clk 00:40:05]} {[%emt 00:03:18]} 17. Bxd6
{[%clk 00:08:58]} {[%emt 00:06:19]} Qxd6 {[%clk 00:39:43]} {[%emt 00:00:51]} 18.
hxg6 {[%clk 00:07:44]} {[%emt 00:01:44]} hxg6 {[%clk 00:38:57]} {[%emt
00:01:15]} 19. Rxh8 {[%clk 00:06:18]} {[%emt 00:01:57]} Rxh8 {[%clk 00:39:21]}
{[%emt 00:00:06]} 20. O-O-O {[%clk 00:05:53]} {[%emt 00:00:54]} Qe5 {[%clk
00:33:43]} {[%emt 00:06:09]} 21. Qf3 {[%clk 00:03:47]} {[%emt 00:02:36]} g5
{[%clk 00:29:22]} {[%emt 00:04:50]} 22. g3 {[%clk 00:03:03]} {[%emt 00:01:16]}
Rh6 {[%clk 00:27:41]} {[%emt 00:02:08]} 23. Bg2 {[%clk 00:02:18]} {[%emt
00:01:17]} Rxf6 {[%clk 00:24:26]} {[%emt 00:03:46]} 24. Qe2 {[%clk 00:02:36]}
{[%emt 00:00:12]} Rh6 {[%clk 00:23:41]} {[%emt 00:01:14]} 25. f4 {[%clk
00:01:15]} {[%emt 00:01:51]} gxf4 {[%clk 00:21:58]} {[%emt 00:02:13]} 26. gxf4
{[%clk 00:01:44]} {[%emt 00:00:01]} Qg7 {[%clk 00:18:55]} {[%emt 00:03:32]} 27.
Bf3 {[%clk 00:00:44]} {[%emt 00:01:31]} f5 {[%clk 00:18:35]} {[%emt 00:00:50]}
28. Qd2 {[%clk 00:00:41]} {[%emt 00:00:33]} Qg3 {[%clk 00:13:23]} {[%emt
00:05:41]} 29. Be2 {[%clk 00:00:36]} {[%emt 00:00:37]} Rh3 {[%clk 00:13:26]}
{[%emt 00:00:27]} 30. e4 {[%clk 00:00:33]} {[%emt 00:00:32]} fxe4 {[%clk
00:13:27]} {[%emt 00:00:29]} 31. Kb1 {[%clk 00:00:31]} {[%emt 00:00:32]} Rh2
{[%clk 00:13:12]} {[%emt 00:00:45]} 32. Re1 {[%clk 00:00:32]} {[%emt 00:00:29]}
Qf2 {[%clk 00:12:49]} {[%emt 00:00:53]} 33. Qd1 {[%clk 00:00:38]} {[%emt
00:00:24]} b3 {[%clk 00:08:15]} {[%emt 00:05:04]} 34. cxb3 {[%clk 00:00:32]}
{[%emt 00:00:36]} d4 {[%clk 00:08:05]} {[%emt 00:00:41]} 35. Qc1 {[%clk
00:00:39]} {[%emt 00:00:23]} d3 {[%clk 00:07:49]} {[%emt 00:00:46]} 36. Bd1
{[%emt 00:00:53]} 0-1

[Event "Weekend I 2025"]
[Site "Uppsala, Sweden"]
[Date "2025.06.27"]
[Round "1.7"]
[White "Tronsson, Martin"]
[Black "Jonsson, Axel"]
[Result "1-0"]
[TimeControl "90 min + increment of 30 sec starting move 1"]
[WhiteFideId "1775057"]
[BlackFideId "1773321"]
[WhiteElo "1963"]
[BlackElo "2002"]

1. e4 {[%clk 01:30:37]} {[%emt 00:00:23]} c6 {[%clk 01:30:54]} {[%emt
00:00:08]} 2. d4 {[%clk 01:30:58]} {[%emt 00:00:08]} d5 {[%clk 01:31:16]}
{[%emt 00:00:07]} 3. e5 {[%clk 01:31:19]} {[%emt 00:00:09]} c5 {[%clk
01:31:40]} {[%emt 00:00:07]} 4. dxc5 {[%clk 01:31:42]} {[%emt 00:00:07]} e6
{[%clk 01:32:04]} {[%emt 00:00:06]} 5. Qg4 {[%clk 01:31:59]} {[%emt 00:00:12]}
h5 {[%clk 01:32:11]} {[%emt 00:00:23]} 6. Qf4 {[%clk 01:32:23]} {[%emt
00:00:06]} Bxc5 {[%clk 01:31:22]} {[%emt 00:01:20]} 7. Nf3 {[%clk 01:32:40]}
{[%emt 00:00:12]} Nc6 {[%clk 01:28:18]} {[%emt 00:03:35]} 8. Bd3 {[%clk
01:27:40]} {[%emt 00:05:30]} f6 {[%clk 01:28:14]} {[%emt 00:00:34]} 9. Bg6+
{[%clk 01:04:28]} {[%emt 00:23:42]} Kd7 {[%clk 01:28:34]} {[%emt 00:00:10]} 10.
O-O {[%clk 01:04:30]} {[%emt 00:00:28]} Nxe5 {[%clk 01:06:10]} {[%emt
00:22:54]} 11. Nxe5+ {[%clk 00:52:48]} {[%emt 00:12:12]} fxe5 {[%clk 01:06:34]}
{[%emt 00:00:06]} 12. Qxe5 {[%clk 00:50:51]} {[%emt 00:02:27]} Qf6 {[%clk
01:03:42]} {[%emt 00:03:20]} 13. Bf4 {[%clk 00:50:15]} {[%emt 00:01:08]} Qxg6
{[%clk 00:54:34]} {[%emt 00:09:37]} 14. Qc7+ {[%clk 00:50:35]} {[%emt
00:00:10]} Ke8 {[%clk 00:54:59]} {[%emt 00:00:05]} 15. Qxc5 {[%clk 00:50:58]}
{[%emt 00:00:08]} Bd7 {[%clk 00:54:14]} {[%emt 00:01:15]} 16. Re1 {[%clk
00:39:54]} {[%emt 00:11:33]} Ne7 {[%clk 00:41:13]} {[%emt 00:13:31]} 17. Nc3
{[%clk 00:34:56]} {[%emt 00:05:29]} Kf7 {[%clk 00:33:22]} {[%emt 00:08:21]} 18.
Rad1 {[%clk 00:23:27]} {[%emt 00:11:59]} Rhe8 {[%clk 00:28:25]} {[%emt
00:05:24]} 19. Ne4 {[%clk 00:22:24]} {[%emt 00:01:36]} Kg8 {[%emt 00:10:30]} 20.
Nd6 {[%clk 00:19:13]} Rf8 {[%clk 00:22:20]} {[%emt 00:00:15]} 21. Be5 {[%clk
00:17:26]} {[%emt 00:02:17]} Bc6 {[%clk 00:20:53]} {[%emt 00:01:58]} 22. Rd3
{[%clk 00:17:16]} {[%emt 00:00:40]} h4 {[%clk 00:21:04]} {[%emt 00:00:19]} 23.
Qd4 {[%clk 00:16:35]} {[%emt 00:01:11]} Qg5 {[%clk 00:12:09]} {[%emt 00:09:24]}
24. f4 {[%clk 00:03:47]} {[%emt 00:13:19]} Qh6 {[%clk 00:09:55]} {[%emt
00:02:44]} 25. Rh3 {[%clk 00:03:29]} {[%emt 00:00:48]} Ng6 {[%clk 00:08:36]}
{[%emt 00:01:49]} 26. Rf1 {[%clk 00:03:51]} {[%emt 00:00:08]} Rad8 {[%clk
00:06:58]} {[%emt 00:02:07]} 27. f5 {[%clk 00:03:28]} {[%emt 00:00:55]} exf5
{[%clk 00:06:25]} {[%emt 00:01:02]} 28. Nxf5 {[%clk 00:03:11]} {[%emt
00:00:47]} Qg5 {[%clk 00:04:45]} {[%emt 00:02:09]} 29. Rhf3 {[%clk 00:02:29]}
{[%emt 00:01:12]} Bb5 {[%clk 00:04:07]} {[%emt 00:01:08]} 30. Bd6 {[%clk
00:01:17]} {[%emt 00:01:43]} Rf7 {[%clk 00:03:00]} {[%emt 00:01:37]} 31. Qxd5
{[%clk 00:01:38]} {[%emt 00:00:09]} Bxf1 {[%clk 00:02:22]} {[%emt 00:01:08]} 32.
Rxf1 {[%clk 00:01:06]} {[%emt 00:01:02]} Rxd6 {[%clk 00:01:53]} {[%emt
00:00:58]} 33. Qxd6 {[%clk 00:01:23]} {[%emt 00:00:14]} Rxf5 {[%clk 00:02:15]}
{[%emt 00:00:08]} 34. Qe6+ {[%clk 00:01:48]} {[%emt 00:00:04]} Kh7 {[%clk
00:01:20]} {[%emt 00:01:25]} 35. Qxf5 {[%clk 00:02:08]} {[%emt 00:00:10]} Qe3+
{[%clk 00:01:39]} {[%emt 00:00:11]} 36. Kh1 {[%clk 00:02:33]} {[%emt 00:00:06]}
Qe2 {[%clk 00:01:19]} {[%emt 00:00:51]} 37. h3 {[%clk 00:02:13]} {[%emt
00:00:49]} Kh6 {[%clk 00:01:22]} {[%emt 00:00:27]} 38. Qf2 {[%clk 00:02:21]}
{[%emt 00:00:22]} Qb5 {[%clk 00:01:31]} {[%emt 00:00:21]} 39. b3 {[%clk
00:02:39]} {[%emt 00:00:12]} a5 {[%clk 00:01:53]} {[%emt 00:00:08]} 40. c4
{[%clk 00:02:52]} {[%emt 00:00:16]} Qe5 {[%clk 00:02:01]} {[%emt 00:00:22]} 41.
Qd2+ {[%clk 00:02:51]} {[%emt 00:00:31]} Kh7 {[%clk 00:02:18]} {[%emt
00:00:14]} 42. Re1 {[%clk 00:02:25]} {[%emt 00:00:55]} Qg3 {[%clk 00:02:25]}
{[%emt 00:00:23]} 43. Re4 {[%clk 00:01:25]} {[%emt 00:01:30]} b6 {[%clk
00:01:50]} {[%emt 00:01:06]} 44. Rg4 {[%clk 00:01:13]} {[%emt 00:00:41]} Qe5
{[%clk 00:01:55]} {[%emt 00:00:25]} 45. Qc1 {[%clk 00:01:29]} {[%emt 00:00:14]}
Qe2 {[%clk 00:01:56]} {[%emt 00:00:29]} 46. Qb1 {[%clk 00:01:44]} {[%emt
00:00:15]} Qe6 {[%clk 00:01:40]} {[%emt 00:00:46]} 47. Rxh4+ {[%clk 00:01:58]}
{[%emt 00:00:16]} Kg8 {[%clk 00:02:03]} {[%emt 00:00:07]} 48. Qe4 {[%clk
00:01:38]} {[%emt 00:00:50]} Qf6 {[%clk 00:01:13]} {[%emt 00:01:20]} 49. Rg4
{[%clk 00:01:43]} {[%emt 00:00:24]} Ne5 {[%clk 00:00:50]} {[%emt 00:00:54]} 50.
Rf4 {[%clk 00:02:05]} {[%emt 00:00:08]} Qg5 {[%clk 00:00:53]} {[%emt 00:00:26]}
51. Rf5 {[%clk 00:01:54]} {[%emt 00:00:42]} Qc1+ {[%clk 00:01:17]} {[%emt
00:00:07]} 52. Kh2 {[%clk 00:02:18]} {[%emt 00:00:05]} 1-0